Workbook

Sheet RESUMO
A1: PRODUTO | B1: QUANT. | C1: 01/10/2024 | G1: PLANILHAS | K1: GUIAS
A2: Cerveja Skol 1 litro | B2: =SUMPRODUCT(SUMIF(INDIRECT("'"&$G$2:$G$4&"'!A:A"),A2,INDIRECT("'"&$G$2:$G$4&"'!B:B"))) -> 12 | C2: =SUMPRODUCT(SUMIF(INDIRECT("'"&$G$2:$G$4&"'!A:A"),A2,INDIRECT("'"&$G$2:$G$4&"'!D:D"))) -> 20.75 | G2: 02-10-24 | J2: 1 | K2: =IFERROR(INDEX(GUIAS,J2),"") -> RESUMO
A3: Cerveja Brahma 1 litro | B3: =SUMPRODUCT(SUMIF(INDIRECT("'"&$G$2:$G$4&"'!A:A"),A3,INDIRECT("'"&$G$2:$G$4&"'!B:B"))) -> 12 | C3: =SUMPRODUCT(SUMIF(INDIRECT("'"&$G$2:$G$4&"'!A:A"),A3,INDIRECT("'"&$G$2:$G$4&"'!D:D"))) -> 39.25 | G3: 03-10-24 | J3: 2 | K3: =IFERROR(INDEX(GUIAS,J3),"") -> 02-10-24
A4: Cerveja Brahma 1 litro | B4: =SUMPRODUCT(SUMIF(INDIRECT("'"&$G$2:$G$4&"'!A:A"),A4,INDIRECT("'"&$G$2:$G$4&"'!B:B"))) -> 12 | C4: =SUMPRODUCT(SUMIF(INDIRECT("'"&$G$2:$G$4&"'!A:A"),A4,INDIRECT("'"&$G$2:$G$4&"'!D:D"))) -> 39.25 | G4: 04-10-24 | J4: 3 | K4: =IFERROR(INDEX(GUIAS,J4),"") -> 03-10-24
A5: Cerveja Brahma 300ml | B5: =SUMPRODUCT(SUMIF(INDIRECT("'"&$G$2:$G$4&"'!A:A"),A5,INDIRECT("'"&$G$2:$G$4&"'!B:B"))) -> 0 | C5: =SUMPRODUCT(SUMIF(INDIRECT("'"&$G$2:$G$4&"'!A:A"),A5,INDIRECT("'"&$G$2:$G$4&"'!D:D"))) -> 6.453913043 | J5: 4 | K5: =IFERROR(INDEX(GUIAS,J5),"") -> 04-10-24
A6: Cerveja Antartica 1 litro | B6: =SUMPRODUCT(SUMIF(INDIRECT("'"&$G$2:$G$4&"'!A:A"),A6,INDIRECT("'"&$G$2:$G$4&"'!B:B"))) -> 300 | C6: =SUMPRODUCT(SUMIF(INDIRECT("'"&$G$2:$G$4&"'!A:A"),A6,INDIRECT("'"&$G$2:$G$4&"'!D:D"))) -> 41.5 | J6: 5
A7: Cerveja Antartica 1 litro | B7: =SUMPRODUCT(SUMIF(INDIRECT("'"&$G$2:$G$4&"'!A:A"),A7,INDIRECT("'"&$G$2:$G$4&"'!B:B"))) -> 300 | C7: =SUMPRODUCT(SUMIF(INDIRECT("'"&$G$2:$G$4&"'!A:A"),A7,INDIRECT("'"&$G$2:$G$4&"'!D:D"))) -> 41.5 | J7: 6
A8: Cerveja Budweiser 1 litro | B8: =SUMPRODUCT(SUMIF(INDIRECT("'"&$G$2:$G$4&"'!A:A"),A8,INDIRECT("'"&$G$2:$G$4&"'!B:B"))) -> 0 | C8: =SUMPRODUCT(SUMIF(INDIRECT("'"&$G$2:$G$4&"'!A:A"),A8,INDIRECT("'"&$G$2:$G$4&"'!D:D"))) -> 39.25 | J8: 7
A9: Cerveja Budweiser 1 litro | B9: =SUMPRODUCT(SUMIF(INDIRECT("'"&$G$2:$G$4&"'!A:A"),A9,INDIRECT("'"&$G$2:$G$4&"'!B:B"))) -> 0 | C9: =SUMPRODUCT(SUMIF(INDIRECT("'"&$G$2:$G$4&"'!A:A"),A9,INDIRECT("'"&$G$2:$G$4&"'!D:D"))) -> 39.25 | J9: 8
A10: Cerveja Budweiser Long Neck | B10: =SUMPRODUCT(SUMIF(INDIRECT("'"&$G$2:$G$4&"'!A:A"),A10,INDIRECT("'"&$G$2:$G$4&"'!B:B"))) -> 0 | C10: =SUMPRODUCT(SUMIF(INDIRECT("'"&$G$2:$G$4&"'!A:A"),A10,INDIRECT("'"&$G$2:$G$4&"'!D:D"))) -> 12 | J10: 9
A11: Cerveja Antartica 300ml | B11: =SUMPRODUCT(SUMIF(INDIRECT("'"&$G$2:$G$4&"'!A:A"),A11,INDIRECT("'"&$G$2:$G$4&"'!B:B"))) -> 0 | C11: =SUMPRODUCT(SUMIF(INDIRECT("'"&$G$2:$G$4&"'!A:A"),A11,INDIRECT("'"&$G$2:$G$4&"'!D:D"))) -> 6.975652174 | J11: 10
A12: Cerveja original 300ml | B12: =SUMPRODUCT(SUMIF(INDIRECT("'"&$G$2:$G$4&"'!A:A"),A12,INDIRECT("'"&$G$2:$G$4&"'!B:B"))) -> 0 | C12: =SUMPRODUCT(SUMIF(INDIRECT("'"&$G$2:$G$4&"'!A:A"),A12,INDIRECT("'"&$G$2:$G$4&"'!D:D"))) -> 7.695652174
A13: Cerveja Stella 600ml | B13: =SUMPRODUCT(SUMIF(INDIRECT("'"&$G$2:$G$4&"'!A:A"),A13,INDIRECT("'"&$G$2:$G$4&"'!B:B"))) -> 0 | C13: =SUMPRODUCT(SUMIF(INDIRECT("'"&$G$2:$G$4&"'!A:A"),A13,INDIRECT("'"&$G$2:$G$4&"'!D:D"))) -> 22.65
A14: Cerveja original 1 Litro | B14: =SUMPRODUCT(SUMIF(INDIRECT("'"&$G$2:$G$4&"'!A:A"),A14,INDIRECT("'"&$G$2:$G$4&"'!B:B"))) -> 0 | C14: =SUMPRODUCT(SUMIF(INDIRECT("'"&$G$2:$G$4&"'!A:A"),A14,INDIRECT("'"&$G$2:$G$4&"'!D:D"))) -> 22.475
A15: Cerveja original 473 ml | B15: =SUMPRODUCT(SUMIF(INDIRECT("'"&$G$2:$G$4&"'!A:A"),A15,INDIRECT("'"&$G$2:$G$4&"'!B:B"))) -> 0 | C15: =SUMPRODUCT(SUMIF(INDIRECT("'"&$G$2:$G$4&"'!A:A"),A15,INDIRECT("'"&$G$2:$G$4&"'!D:D"))) -> 13.23
A16: Vodka Orloff 1 litro | B16: =SUMPRODUCT(SUMIF(INDIRECT("'"&$G$2:$G$4&"'!A:A"),A16,INDIRECT("'"&$G$2:$G$4&"'!B:B"))) -> 0 | C16: =SUMPRODUCT(SUMIF(INDIRECT("'"&$G$2:$G$4&"'!A:A"),A16,INDIRECT("'"&$G$2:$G$4&"'!D:D"))) -> 85.2
A17: Vodka Smirnoff 998ml | B17: =SUMPRODUCT(SUMIF(INDIRECT("'"&$G$2:$G$4&"'!A:A"),A17,INDIRECT("'"&$G$2:$G$4&"'!B:B"))) -> 0 | C17: =SUMPRODUCT(SUMIF(INDIRECT("'"&$G$2:$G$4&"'!A:A"),A17,INDIRECT("'"&$G$2:$G$4&"'!D:D"))) -> 101.19
A18: Cerveja Sparten Lata 473ml | B18: =SUMPRODUCT(SUMIF(INDIRECT("'"&$G$2:$G$4&"'!A:A"),A18,INDIRECT("'"&$G$2:$G$4&"'!B:B"))) -> 0 | C18: =SUMPRODUCT(SUMIF(INDIRECT("'"&$G$2:$G$4&"'!A:A"),A18,INDIRECT("'"&$G$2:$G$4&"'!D:D"))) -> 12.475
A19: Cerveja corona LongNeck | B19: =SUMPRODUCT(SUMIF(INDIRECT("'"&$G$2:$G$4&"'!A:A"),A19,INDIRECT("'"&$G$2:$G$4&"'!B:B"))) -> 0 | C19: =SUMPRODUCT(SUMIF(INDIRECT("'"&$G$2:$G$4&"'!A:A"),A19,INDIRECT("'"&$G$2:$G$4&"'!D:D"))) -> 15.875
A20: Cachaça Seleta 1 litro | B20: =SUMPRODUCT(SUMIF(INDIRECT("'"&$G$2:$G$4&"'!A:A"),A20,INDIRECT("'"&$G$2:$G$4&"'!B:B"))) -> 0 | C20: =SUMPRODUCT(SUMIF(INDIRECT("'"&$G$2:$G$4&"'!A:A"),A20,INDIRECT("'"&$G$2:$G$4&"'!D:D"))) -> 89.7
A21: Wisky Red Label | B21: =SUMPRODUCT(SUMIF(INDIRECT("'"&$G$2:$G$4&"'!A:A"),A21,INDIRECT("'"&$G$2:$G$4&"'!B:B"))) -> 0 | C21: =SUMPRODUCT(SUMIF(INDIRECT("'"&$G$2:$G$4&"'!A:A"),A21,INDIRECT("'"&$G$2:$G$4&"'!D:D"))) -> 224.7
A22: Wisky Cavalo Branco | B22: =SUMPRODUCT(SUMIF(INDIRECT("'"&$G$2:$G$4&"'!A:A"),A22,INDIRECT("'"&$G$2:$G$4&"'!B:B"))) -> 0 | C22: =SUMPRODUCT(SUMIF(INDIRECT("'"&$G$2:$G$4&"'!A:A"),A22,INDIRECT("'"&$G$2:$G$4&"'!D:D"))) -> 188.7
A23: Refrigerante Pepsi 2 litros | B23: =SUMPRODUCT(SUMIF(INDIRECT("'"&$G$2:$G$4&"'!A:A"),A23,INDIRECT("'"&$G$2:$G$4&"'!B:B"))) -> 0 | C23: =SUMPRODUCT(SUMIF(INDIRECT("'"&$G$2:$G$4&"'!A:A"),A23,INDIRECT("'"&$G$2:$G$4&"'!D:D"))) -> 18.04
A24: Refrigerante Pepsi 200ml | B24: =SUMPRODUCT(SUMIF(INDIRECT("'"&$G$2:$G$4&"'!A:A"),A24,INDIRECT("'"&$G$2:$G$4&"'!B:B"))) -> 0 | C24: =SUMPRODUCT(SUMIF(INDIRECT("'"&$G$2:$G$4&"'!A:A"),A24,INDIRECT("'"&$G$2:$G$4&"'!D:D"))) -> 3.75
A25: Refrigerante Antarctica 2 litros | B25: =SUMPRODUCT(SUMIF(INDIRECT("'"&$G$2:$G$4&"'!A:A"),A25,INDIRECT("'"&$G$2:$G$4&"'!B:B"))) -> 6 | C25: =SUMPRODUCT(SUMIF(INDIRECT("'"&$G$2:$G$4&"'!A:A"),A25,INDIRECT("'"&$G$2:$G$4&"'!D:D"))) -> 19.89
A26: Refrigerante Antarctica 200ml | B26: =SUMPRODUCT(SUMIF(INDIRECT("'"&$G$2:$G$4&"'!A:A"),A26,INDIRECT("'"&$G$2:$G$4&"'!B:B"))) -> 0 | C26: =SUMPRODUCT(SUMIF(INDIRECT("'"&$G$2:$G$4&"'!A:A"),A26,INDIRECT("'"&$G$2:$G$4&"'!D:D"))) -> 3.75
A27: Refrigerante Antarctica 350ml | B27: =SUMPRODUCT(SUMIF(INDIRECT("'"&$G$2:$G$4&"'!A:A"),A27,INDIRECT("'"&$G$2:$G$4&"'!B:B"))) -> 0 | C27: =SUMPRODUCT(SUMIF(INDIRECT("'"&$G$2:$G$4&"'!A:A"),A27,INDIRECT("'"&$G$2:$G$4&"'!D:D"))) -> 2.9
A28: Refrigerante Sukita 2 litros | B28: =SUMPRODUCT(SUMIF(INDIRECT("'"&$G$2:$G$4&"'!A:A"),A28,INDIRECT("'"&$G$2:$G$4&"'!B:B"))) -> 0 | C28: =SUMPRODUCT(SUMIF(INDIRECT("'"&$G$2:$G$4&"'!A:A"),A28,INDIRECT("'"&$G$2:$G$4&"'!D:D"))) -> 14.375
A29: Refrigerante Sukita Laranja 200ml | B29: =SUMPRODUCT(SUMIF(INDIRECT("'"&$G$2:$G$4&"'!A:A"),A29,INDIRECT("'"&$G$2:$G$4&"'!B:B"))) -> 0 | C29: =SUMPRODUCT(SUMIF(INDIRECT("'"&$G$2:$G$4&"'!A:A"),A29,INDIRECT("'"&$G$2:$G$4&"'!D:D"))) -> 4.17
A30: Energetico Red Bull 250ml | B30: =SUMPRODUCT(SUMIF(INDIRECT("'"&$G$2:$G$4&"'!A:A"),A30,INDIRECT("'"&$G$2:$G$4&"'!B:B"))) -> 0 | C30: =SUMPRODUCT(SUMIF(INDIRECT("'"&$G$2:$G$4&"'!A:A"),A30,INDIRECT("'"&$G$2:$G$4&"'!D:D"))) -> 21.87
A31: H2OH 1,5 litro limoneto | B31: =SUMPRODUCT(SUMIF(INDIRECT("'"&$G$2:$G$4&"'!A:A"),A31,INDIRECT("'"&$G$2:$G$4&"'!B:B"))) -> 0 | C31: =SUMPRODUCT(SUMIF(INDIRECT("'"&$G$2:$G$4&"'!A:A"),A31,INDIRECT("'"&$G$2:$G$4&"'!D:D"))) -> 19.8
A32: Bala Halls | B32: =SUMPRODUCT(SUMIF(INDIRECT("'"&$G$2:$G$4&"'!A:A"),A32,INDIRECT("'"&$G$2:$G$4&"'!B:B"))) -> 0 | C32: =SUMPRODUCT(SUMIF(INDIRECT("'"&$G$2:$G$4&"'!A:A"),A32,INDIRECT("'"&$G$2:$G$4&"'!D:D"))) -> 3.5913
A33: Skol Beats | B33: =SUMPRODUCT(SUMIF(INDIRECT("'"&$G$2:$G$4&"'!A:A"),A33,INDIRECT("'"&$G$2:$G$4&"'!B:B"))) -> 0 | C33: =SUMPRODUCT(SUMIF(INDIRECT("'"&$G$2:$G$4&"'!A:A"),A33,INDIRECT("'"&$G$2:$G$4&"'!D:D"))) -> 14.4
A34: Biscoito Piraque | B34: =SUMPRODUCT(SUMIF(INDIRECT("'"&$G$2:$G$4&"'!A:A"),A34,INDIRECT("'"&$G$2:$G$4&"'!B:B"))) -> 0 | C34: =SUMPRODUCT(SUMIF(INDIRECT("'"&$G$2:$G$4&"'!A:A"),A34,INDIRECT("'"&$G$2:$G$4&"'!D:D"))) -> 7.5
A35: Cerveja Heineken 600ml | B35: =SUMPRODUCT(SUMIF(INDIRECT("'"&$G$2:$G$4&"'!A:A"),A35,INDIRECT("'"&$G$2:$G$4&"'!B:B"))) -> 0 | C35: =SUMPRODUCT(SUMIF(INDIRECT("'"&$G$2:$G$4&"'!A:A"),A35,INDIRECT("'"&$G$2:$G$4&"'!D:D"))) -> 24.87
A36: Agua Mamba Water 350ml | B36: =SUMPRODUCT(SUMIF(INDIRECT("'"&$G$2:$G$4&"'!A:A"),A36,INDIRECT("'"&$G$2:$G$4&"'!B:B"))) -> 0 | C36: =SUMPRODUCT(SUMIF(INDIRECT("'"&$G$2:$G$4&"'!A:A"),A36,INDIRECT("'"&$G$2:$G$4&"'!D:D"))) -> 6.51
A37: Cerveja Lagunitas 350ml | B37: =SUMPRODUCT(SUMIF(INDIRECT("'"&$G$2:$G$4&"'!A:A"),A37,INDIRECT("'"&$G$2:$G$4&"'!B:B"))) -> 0 | C37: =SUMPRODUCT(SUMIF(INDIRECT("'"&$G$2:$G$4&"'!A:A"),A37,INDIRECT("'"&$G$2:$G$4&"'!D:D"))) -> 12
A38: Cerveja Amstel 1 litro | B38: =SUMPRODUCT(SUMIF(INDIRECT("'"&$G$2:$G$4&"'!A:A"),A38,INDIRECT("'"&$G$2:$G$4&"'!B:B"))) -> 12 | C38: =SUMPRODUCT(SUMIF(INDIRECT("'"&$G$2:$G$4&"'!A:A"),A38,INDIRECT("'"&$G$2:$G$4&"'!D:D"))) -> 18.7375
A39: Cerveja BADEN 350ml | B39: =SUMPRODUCT(SUMIF(INDIRECT("'"&$G$2:$G$4&"'!A:A"),A39,INDIRECT("'"&$G$2:$G$4&"'!B:B"))) -> 0 | C39: =SUMPRODUCT(SUMIF(INDIRECT("'"&$G$2:$G$4&"'!A:A"),A39,INDIRECT("'"&$G$2:$G$4&"'!D:D"))) -> 13.02
A40: Refrigerante ItaUp sabores | B40: =SUMPRODUCT(SUMIF(INDIRECT("'"&$G$2:$G$4&"'!A:A"),A40,INDIRECT("'"&$G$2:$G$4&"'!B:B"))) -> 0 | C40: =SUMPRODUCT(SUMIF(INDIRECT("'"&$G$2:$G$4&"'!A:A"),A40,INDIRECT("'"&$G$2:$G$4&"'!D:D"))) -> 9.45
A41: Energetico Fontt 2 litros | B41: =SUMPRODUCT(SUMIF(INDIRECT("'"&$G$2:$G$4&"'!A:A"),A41,INDIRECT("'"&$G$2:$G$4&"'!B:B"))) -> 0 | C41: =SUMPRODUCT(SUMIF(INDIRECT("'"&$G$2:$G$4&"'!A:A"),A41,INDIRECT("'"&$G$2:$G$4&"'!D:D"))) -> 9
A42: Refrigerante Coca Cola 2 litros | B42: =SUMPRODUCT(SUMIF(INDIRECT("'"&$G$2:$G$4&"'!A:A"),A42,INDIRECT("'"&$G$2:$G$4&"'!B:B"))) -> 108 | C42: =SUMPRODUCT(SUMIF(INDIRECT("'"&$G$2:$G$4&"'!A:A"),A42,INDIRECT("'"&$G$2:$G$4&"'!D:D"))) -> 23
A43: Refrigerante Coca Cola 2 litros Retornavel | B43: =SUMPRODUCT(SUMIF(INDIRECT("'"&$G$2:$G$4&"'!A:A"),A43,INDIRECT("'"&$G$2:$G$4&"'!B:B"))) -> 0 | C43: =SUMPRODUCT(SUMIF(INDIRECT("'"&$G$2:$G$4&"'!A:A"),A43,INDIRECT("'"&$G$2:$G$4&"'!D:D"))) -> 17.1
A44: Refrigerante Coca Cola 2,250 | B44: =SUMPRODUCT(SUMIF(INDIRECT("'"&$G$2:$G$4&"'!A:A"),A44,INDIRECT("'"&$G$2:$G$4&"'!B:B"))) -> 0 | C44: =SUMPRODUCT(SUMIF(INDIRECT("'"&$G$2:$G$4&"'!A:A"),A44,INDIRECT("'"&$G$2:$G$4&"'!D:D"))) -> 0
A45: Refrigerante Coca Cola 2,250 Sem Açucar | B45: =SUMPRODUCT(SUMIF(INDIRECT("'"&$G$2:$G$4&"'!A:A"),A45,INDIRECT("'"&$G$2:$G$4&"'!B:B"))) -> 0 | C45: =SUMPRODUCT(SUMIF(INDIRECT("'"&$G$2:$G$4&"'!A:A"),A45,INDIRECT("'"&$G$2:$G$4&"'!D:D"))) -> 0
A46: Refrigerante Coca Cola mini 200ml | B46: =SUMPRODUCT(SUMIF(INDIRECT("'"&$G$2:$G$4&"'!A:A"),A46,INDIRECT("'"&$G$2:$G$4&"'!B:B"))) -> 0 | C46: =SUMPRODUCT(SUMIF(INDIRECT("'"&$G$2:$G$4&"'!A:A"),A46,INDIRECT("'"&$G$2:$G$4&"'!D:D"))) -> 4.35
A47: Refrigerante Fanta Laranja 600ml | B47: =SUMPRODUCT(SUMIF(INDIRECT("'"&$G$2:$G$4&"'!A:A"),A47,INDIRECT("'"&$G$2:$G$4&"'!B:B"))) -> 0 | C47: =SUMPRODUCT(SUMIF(INDIRECT("'"&$G$2:$G$4&"'!A:A"),A47,INDIRECT("'"&$G$2:$G$4&"'!D:D"))) -> 10.86
A48: Refrigerante Coca Cola lata 350ml | B48: =SUMPRODUCT(SUMIF(INDIRECT("'"&$G$2:$G$4&"'!A:A"),A48,INDIRECT("'"&$G$2:$G$4&"'!B:B"))) -> 0 | C48: =SUMPRODUCT(SUMIF(INDIRECT("'"&$G$2:$G$4&"'!A:A"),A48,INDIRECT("'"&$G$2:$G$4&"'!D:D"))) -> 8.25
A49: Refrigerante Coca Cola 600ml | B49: =SUMPRODUCT(SUMIF(INDIRECT("'"&$G$2:$G$4&"'!A:A"),A49,INDIRECT("'"&$G$2:$G$4&"'!B:B"))) -> 0 | C49: =SUMPRODUCT(SUMIF(INDIRECT("'"&$G$2:$G$4&"'!A:A"),A49,INDIRECT("'"&$G$2:$G$4&"'!D:D"))) -> 13.5
A50: Refrigerante Coca Cola lata 350ml sem açucar | B50: =SUMPRODUCT(SUMIF(INDIRECT("'"&$G$2:$G$4&"'!A:A"),A50,INDIRECT("'"&$G$2:$G$4&"'!B:B"))) -> 0 | C50: =SUMPRODUCT(SUMIF(INDIRECT("'"&$G$2:$G$4&"'!A:A"),A50,INDIRECT("'"&$G$2:$G$4&"'!D:D"))) -> 7.83
A51: Suco DelVale 1,5 | B51: =SUMPRODUCT(SUMIF(INDIRECT("'"&$G$2:$G$4&"'!A:A"),A51,INDIRECT("'"&$G$2:$G$4&"'!B:B"))) -> 0 | C51: =SUMPRODUCT(SUMIF(INDIRECT("'"&$G$2:$G$4&"'!A:A"),A51,INDIRECT("'"&$G$2:$G$4&"'!D:D"))) -> 21.09
A52: Suco Kappo | B52: =SUMPRODUCT(SUMIF(INDIRECT("'"&$G$2:$G$4&"'!A:A"),A52,INDIRECT("'"&$G$2:$G$4&"'!B:B"))) -> 0 | C52: =SUMPRODUCT(SUMIF(INDIRECT("'"&$G$2:$G$4&"'!A:A"),A52,INDIRECT("'"&$G$2:$G$4&"'!D:D"))) -> 3.75
A53: CHOKITO | B53: =SUMPRODUCT(SUMIF(INDIRECT("'"&$G$2:$G$4&"'!A:A"),A53,INDIRECT("'"&$G$2:$G$4&"'!B:B"))) -> 0 | C53: =SUMPRODUCT(SUMIF(INDIRECT("'"&$G$2:$G$4&"'!A:A"),A53,INDIRECT("'"&$G$2:$G$4&"'!D:D"))) -> 4.98
A54: PASSATEMPO | B54: =SUMPRODUCT(SUMIF(INDIRECT("'"&$G$2:$G$4&"'!A:A"),A54,INDIRECT("'"&$G$2:$G$4&"'!B:B"))) -> 0 | C54: =SUMPRODUCT(SUMIF(INDIRECT("'"&$G$2:$G$4&"'!A:A"),A54,INDIRECT("'"&$G$2:$G$4&"'!D:D"))) -> 6.87
A55: BONO | B55: =SUMPRODUCT(SUMIF(INDIRECT("'"&$G$2:$G$4&"'!A:A"),A55,INDIRECT("'"&$G$2:$G$4&"'!B:B"))) -> 0 | C55: =SUMPRODUCT(SUMIF(INDIRECT("'"&$G$2:$G$4&"'!A:A"),A55,INDIRECT("'"&$G$2:$G$4&"'!D:D"))) -> 6.51
A56: PRESTIGIO | B56: =SUMPRODUCT(SUMIF(INDIRECT("'"&$G$2:$G$4&"'!A:A"),A56,INDIRECT("'"&$G$2:$G$4&"'!B:B"))) -> 0 | C56: =SUMPRODUCT(SUMIF(INDIRECT("'"&$G$2:$G$4&"'!A:A"),A56,INDIRECT("'"&$G$2:$G$4&"'!D:D"))) -> 4.62
A57: Carvão Roytec 2,5kg | B57: =SUMPRODUCT(SUMIF(INDIRECT("'"&$G$2:$G$4&"'!A:A"),A57,INDIRECT("'"&$G$2:$G$4&"'!B:B"))) -> 0 | C57: =SUMPRODUCT(SUMIF(INDIRECT("'"&$G$2:$G$4&"'!A:A"),A57,INDIRECT("'"&$G$2:$G$4&"'!D:D"))) -> 25.5
A58: AGUA 20 LITROS | B58: =SUMPRODUCT(SUMIF(INDIRECT("'"&$G$2:$G$4&"'!A:A"),A58,INDIRECT("'"&$G$2:$G$4&"'!B:B"))) -> 0 | C58: =SUMPRODUCT(SUMIF(INDIRECT("'"&$G$2:$G$4&"'!A:A"),A58,INDIRECT("'"&$G$2:$G$4&"'!D:D"))) -> 18
A59: AGUA COM GÁS 510ML | B59: =SUMPRODUCT(SUMIF(INDIRECT("'"&$G$2:$G$4&"'!A:A"),A59,INDIRECT("'"&$G$2:$G$4&"'!B:B"))) -> 0 | C59: =SUMPRODUCT(SUMIF(INDIRECT("'"&$G$2:$G$4&"'!A:A"),A59,INDIRECT("'"&$G$2:$G$4&"'!D:D"))) -> 3.5
A60: AGUA SEM GÁS 510ML | B60: =SUMPRODUCT(SUMIF(INDIRECT("'"&$G$2:$G$4&"'!A:A"),A60,INDIRECT("'"&$G$2:$G$4&"'!B:B"))) -> 0 | C60: =SUMPRODUCT(SUMIF(INDIRECT("'"&$G$2:$G$4&"'!A:A"),A60,INDIRECT("'"&$G$2:$G$4&"'!D:D"))) -> 2.5
A61: Energetico one 2 litros | B61: =SUMPRODUCT(SUMIF(INDIRECT("'"&$G$2:$G$4&"'!A:A"),A61,INDIRECT("'"&$G$2:$G$4&"'!B:B"))) -> 12 | C61: =SUMPRODUCT(SUMIF(INDIRECT("'"&$G$2:$G$4&"'!A:A"),A61,INDIRECT("'"&$G$2:$G$4&"'!D:D"))) -> 13.05
A62: Vodka Darkoff 900ml | B62: =SUMPRODUCT(SUMIF(INDIRECT("'"&$G$2:$G$4&"'!A:A"),A62,INDIRECT("'"&$G$2:$G$4&"'!B:B"))) -> 12 | C62: =SUMPRODUCT(SUMIF(INDIRECT("'"&$G$2:$G$4&"'!A:A"),A62,INDIRECT("'"&$G$2:$G$4&"'!D:D"))) -> 16.5
A63: Vodka Darkoff 1,50 litros | B63: =SUMPRODUCT(SUMIF(INDIRECT("'"&$G$2:$G$4&"'!A:A"),A63,INDIRECT("'"&$G$2:$G$4&"'!B:B"))) -> 0 | C63: =SUMPRODUCT(SUMIF(INDIRECT("'"&$G$2:$G$4&"'!A:A"),A63,INDIRECT("'"&$G$2:$G$4&"'!D:D"))) -> 22.5
A64: Combo Jaya 1,50 litros | B64: =SUMPRODUCT(SUMIF(INDIRECT("'"&$G$2:$G$4&"'!A:A"),A64,INDIRECT("'"&$G$2:$G$4&"'!B:B"))) -> 0 | C64: =SUMPRODUCT(SUMIF(INDIRECT("'"&$G$2:$G$4&"'!A:A"),A64,INDIRECT("'"&$G$2:$G$4&"'!D:D"))) -> 42
A65: Combo One 1,50 litros | B65: =SUMPRODUCT(SUMIF(INDIRECT("'"&$G$2:$G$4&"'!A:A"),A65,INDIRECT("'"&$G$2:$G$4&"'!B:B"))) -> 0 | C65: =SUMPRODUCT(SUMIF(INDIRECT("'"&$G$2:$G$4&"'!A:A"),A65,INDIRECT("'"&$G$2:$G$4&"'!D:D"))) -> 35.55
A66: Combo Jaya 900ml | B66: =SUMPRODUCT(SUMIF(INDIRECT("'"&$G$2:$G$4&"'!A:A"),A66,INDIRECT("'"&$G$2:$G$4&"'!B:B"))) -> 0 | C66: =SUMPRODUCT(SUMIF(INDIRECT("'"&$G$2:$G$4&"'!A:A"),A66,INDIRECT("'"&$G$2:$G$4&"'!D:D"))) -> 36.3
A67: Combo One 900ml | B67: =SUMPRODUCT(SUMIF(INDIRECT("'"&$G$2:$G$4&"'!A:A"),A67,INDIRECT("'"&$G$2:$G$4&"'!B:B"))) -> 0 | C67: =SUMPRODUCT(SUMIF(INDIRECT("'"&$G$2:$G$4&"'!A:A"),A67,INDIRECT("'"&$G$2:$G$4&"'!D:D"))) -> 30
A68: Vinho Bodegão Bordo 1 Litro | B68: =SUMPRODUCT(SUMIF(INDIRECT("'"&$G$2:$G$4&"'!A:A"),A68,INDIRECT("'"&$G$2:$G$4&"'!B:B"))) -> 0 | C68: =SUMPRODUCT(SUMIF(INDIRECT("'"&$G$2:$G$4&"'!A:A"),A68,INDIRECT("'"&$G$2:$G$4&"'!D:D"))) -> 24.735
A69: Energetico Jaya 2 litros | B69: =SUMPRODUCT(SUMIF(INDIRECT("'"&$G$2:$G$4&"'!A:A"),A69,INDIRECT("'"&$G$2:$G$4&"'!B:B"))) -> 0 | C69: =SUMPRODUCT(SUMIF(INDIRECT("'"&$G$2:$G$4&"'!A:A"),A69,INDIRECT("'"&$G$2:$G$4&"'!D:D"))) -> 19.5
A70: Ice One 300ml | B70: =SUMPRODUCT(SUMIF(INDIRECT("'"&$G$2:$G$4&"'!A:A"),A70,INDIRECT("'"&$G$2:$G$4&"'!B:B"))) -> 0 | C70: =SUMPRODUCT(SUMIF(INDIRECT("'"&$G$2:$G$4&"'!A:A"),A70,INDIRECT("'"&$G$2:$G$4&"'!D:D"))) -> 5.67
A71: Coquetel Banana Belong 960ml | B71: =SUMPRODUCT(SUMIF(INDIRECT("'"&$G$2:$G$4&"'!A:A"),A71,INDIRECT("'"&$G$2:$G$4&"'!B:B"))) -> 0 | C71: =SUMPRODUCT(SUMIF(INDIRECT("'"&$G$2:$G$4&"'!A:A"),A71,INDIRECT("'"&$G$2:$G$4&"'!D:D"))) -> 46.5
A72: Chopp Bodegão 600ml | B72: =SUMPRODUCT(SUMIF(INDIRECT("'"&$G$2:$G$4&"'!A:A"),A72,INDIRECT("'"&$G$2:$G$4&"'!B:B"))) -> 0 | C72: =SUMPRODUCT(SUMIF(INDIRECT("'"&$G$2:$G$4&"'!A:A"),A72,INDIRECT("'"&$G$2:$G$4&"'!D:D"))) -> 14.85
A73: Vinho Bodegão 2 Litros | B73: =SUMPRODUCT(SUMIF(INDIRECT("'"&$G$2:$G$4&"'!A:A"),A73,INDIRECT("'"&$G$2:$G$4&"'!B:B"))) -> 0 | C73: =SUMPRODUCT(SUMIF(INDIRECT("'"&$G$2:$G$4&"'!A:A"),A73,INDIRECT("'"&$G$2:$G$4&"'!D:D"))) -> 49.5
A74: Menta 900ml | B74: =SUMPRODUCT(SUMIF(INDIRECT("'"&$G$2:$G$4&"'!A:A"),A74,INDIRECT("'"&$G$2:$G$4&"'!B:B"))) -> 0 | C74: =SUMPRODUCT(SUMIF(INDIRECT("'"&$G$2:$G$4&"'!A:A"),A74,INDIRECT("'"&$G$2:$G$4&"'!D:D"))) -> 17.7
A75: Ousadia 500ml | B75: =SUMPRODUCT(SUMIF(INDIRECT("'"&$G$2:$G$4&"'!A:A"),A75,INDIRECT("'"&$G$2:$G$4&"'!B:B"))) -> 0 | C75: =SUMPRODUCT(SUMIF(INDIRECT("'"&$G$2:$G$4&"'!A:A"),A75,INDIRECT("'"&$G$2:$G$4&"'!D:D"))) -> 9.73
A76: Chopp Vinho Pink Moon 600ml | B76: =SUMPRODUCT(SUMIF(INDIRECT("'"&$G$2:$G$4&"'!A:A"),A76,INDIRECT("'"&$G$2:$G$4&"'!B:B"))) -> 0 | C76: =SUMPRODUCT(SUMIF(INDIRECT("'"&$G$2:$G$4&"'!A:A"),A76,INDIRECT("'"&$G$2:$G$4&"'!D:D"))) -> 22.2
A77: Vodka Komaroff 1L | B77: =SUMPRODUCT(SUMIF(INDIRECT("'"&$G$2:$G$4&"'!A:A"),A77,INDIRECT("'"&$G$2:$G$4&"'!B:B"))) -> 0 | C77: =SUMPRODUCT(SUMIF(INDIRECT("'"&$G$2:$G$4&"'!A:A"),A77,INDIRECT("'"&$G$2:$G$4&"'!D:D"))) -> 18
A78: Ice syn 300ml | B78: =SUMPRODUCT(SUMIF(INDIRECT("'"&$G$2:$G$4&"'!A:A"),A78,INDIRECT("'"&$G$2:$G$4&"'!B:B"))) -> 0 | C78: =SUMPRODUCT(SUMIF(INDIRECT("'"&$G$2:$G$4&"'!A:A"),A78,INDIRECT("'"&$G$2:$G$4&"'!D:D"))) -> 5.40375
A79: GostoGin lata 269ml | B79: =SUMPRODUCT(SUMIF(INDIRECT("'"&$G$2:$G$4&"'!A:A"),A79,INDIRECT("'"&$G$2:$G$4&"'!B:B"))) -> 0 | C79: =SUMPRODUCT(SUMIF(INDIRECT("'"&$G$2:$G$4&"'!A:A"),A79,INDIRECT("'"&$G$2:$G$4&"'!D:D"))) -> 10.1975
A80: Vinho Cantina da serra | B80: =SUMPRODUCT(SUMIF(INDIRECT("'"&$G$2:$G$4&"'!A:A"),A80,INDIRECT("'"&$G$2:$G$4&"'!B:B"))) -> 0 | C80: =SUMPRODUCT(SUMIF(INDIRECT("'"&$G$2:$G$4&"'!A:A"),A80,INDIRECT("'"&$G$2:$G$4&"'!D:D"))) -> 13.43
A81: Cerveja Skol Lata 473ml | B81: =SUMPRODUCT(SUMIF(INDIRECT("'"&$G$2:$G$4&"'!A:A"),A81,INDIRECT("'"&$G$2:$G$4&"'!B:B"))) -> 0 | C81: =SUMPRODUCT(SUMIF(INDIRECT("'"&$G$2:$G$4&"'!A:A"),A81,INDIRECT("'"&$G$2:$G$4&"'!D:D"))) -> 10.475
A82: Cerveja Skol Beats Lata 269ml | B82: =SUMPRODUCT(SUMIF(INDIRECT("'"&$G$2:$G$4&"'!A:A"),A82,INDIRECT("'"&$G$2:$G$4&"'!B:B"))) -> 0 | C82: =SUMPRODUCT(SUMIF(INDIRECT("'"&$G$2:$G$4&"'!A:A"),A82,INDIRECT("'"&$G$2:$G$4&"'!D:D"))) -> 15.42
A83: Cerveja Brahma 473ml | B83: =SUMPRODUCT(SUMIF(INDIRECT("'"&$G$2:$G$4&"'!A:A"),A83,INDIRECT("'"&$G$2:$G$4&"'!B:B"))) -> 360 | C83: =SUMPRODUCT(SUMIF(INDIRECT("'"&$G$2:$G$4&"'!A:A"),A83,INDIRECT("'"&$G$2:$G$4&"'!D:D"))) -> 20.15
A84: Cerveja Brahma 473ml | B84: =SUMPRODUCT(SUMIF(INDIRECT("'"&$G$2:$G$4&"'!A:A"),A84,INDIRECT("'"&$G$2:$G$4&"'!B:B"))) -> 360 | C84: =SUMPRODUCT(SUMIF(INDIRECT("'"&$G$2:$G$4&"'!A:A"),A84,INDIRECT("'"&$G$2:$G$4&"'!D:D"))) -> 20.15
A85: Cerveja Antartica lata 473ml | B85: =SUMPRODUCT(SUMIF(INDIRECT("'"&$G$2:$G$4&"'!A:A"),A85,INDIRECT("'"&$G$2:$G$4&"'!B:B"))) -> 3036 | C85: =SUMPRODUCT(SUMIF(INDIRECT("'"&$G$2:$G$4&"'!A:A"),A85,INDIRECT("'"&$G$2:$G$4&"'!D:D"))) -> 21.225
A86: Cerveja Antartica lata 473ml | B86: =SUMPRODUCT(SUMIF(INDIRECT("'"&$G$2:$G$4&"'!A:A"),A86,INDIRECT("'"&$G$2:$G$4&"'!B:B"))) -> 3036 | C86: =SUMPRODUCT(SUMIF(INDIRECT("'"&$G$2:$G$4&"'!A:A"),A86,INDIRECT("'"&$G$2:$G$4&"'!D:D"))) -> 21.225
A87: Cerveja Stella lata 473 ml | B87: =SUMPRODUCT(SUMIF(INDIRECT("'"&$G$2:$G$4&"'!A:A"),A87,INDIRECT("'"&$G$2:$G$4&"'!B:B"))) -> 0 | C87: =SUMPRODUCT(SUMIF(INDIRECT("'"&$G$2:$G$4&"'!A:A"),A87,INDIRECT("'"&$G$2:$G$4&"'!D:D"))) -> 11.725
A88: Cerveja Budweiser Latão | B88: =SUMPRODUCT(SUMIF(INDIRECT("'"&$G$2:$G$4&"'!A:A"),A88,INDIRECT("'"&$G$2:$G$4&"'!B:B"))) -> 0 | C88: =SUMPRODUCT(SUMIF(INDIRECT("'"&$G$2:$G$4&"'!A:A"),A88,INDIRECT("'"&$G$2:$G$4&"'!D:D"))) -> 11.56
A89: Cerveja Budweiser LongNeck | B89: =SUMPRODUCT(SUMIF(INDIRECT("'"&$G$2:$G$4&"'!A:A"),A89,INDIRECT("'"&$G$2:$G$4&"'!B:B"))) -> 0 | C89: =SUMPRODUCT(SUMIF(INDIRECT("'"&$G$2:$G$4&"'!A:A"),A89,INDIRECT("'"&$G$2:$G$4&"'!D:D"))) -> 11.975
A90: Brahma Duplo Malte | B90: =SUMPRODUCT(SUMIF(INDIRECT("'"&$G$2:$G$4&"'!A:A"),A90,INDIRECT("'"&$G$2:$G$4&"'!B:B"))) -> 0 | C90: =SUMPRODUCT(SUMIF(INDIRECT("'"&$G$2:$G$4&"'!A:A"),A90,INDIRECT("'"&$G$2:$G$4&"'!D:D"))) -> 10.275
A91: Cerveja Itaipava Latão | B91: =SUMPRODUCT(SUMIF(INDIRECT("'"&$G$2:$G$4&"'!A:A"),A91,INDIRECT("'"&$G$2:$G$4&"'!B:B"))) -> 0 | C91: =SUMPRODUCT(SUMIF(INDIRECT("'"&$G$2:$G$4&"'!A:A"),A91,INDIRECT("'"&$G$2:$G$4&"'!D:D"))) -> 7.5375
A92: Cerveja Lokal latão | B92: =SUMPRODUCT(SUMIF(INDIRECT("'"&$G$2:$G$4&"'!A:A"),A92,INDIRECT("'"&$G$2:$G$4&"'!B:B"))) -> 0 | C92: =SUMPRODUCT(SUMIF(INDIRECT("'"&$G$2:$G$4&"'!A:A"),A92,INDIRECT("'"&$G$2:$G$4&"'!D:D"))) -> 6.85
A93: Creveja Imperio Latão Puro Malte | B93: =SUMPRODUCT(SUMIF(INDIRECT("'"&$G$2:$G$4&"'!A:A"),A93,INDIRECT("'"&$G$2:$G$4&"'!B:B"))) -> 0 | C93: =SUMPRODUCT(SUMIF(INDIRECT("'"&$G$2:$G$4&"'!A:A"),A93,INDIRECT("'"&$G$2:$G$4&"'!D:D"))) -> 18.5
A94: Creveja Imperio Latão Puro Malte | B94: =SUMPRODUCT(SUMIF(INDIRECT("'"&$G$2:$G$4&"'!A:A"),A94,INDIRECT("'"&$G$2:$G$4&"'!B:B"))) -> 0 | C94: =SUMPRODUCT(SUMIF(INDIRECT("'"&$G$2:$G$4&"'!A:A"),A94,INDIRECT("'"&$G$2:$G$4&"'!D:D"))) -> 18.5
A95: Creveja Imperio Latão Large | B95: =SUMPRODUCT(SUMIF(INDIRECT("'"&$G$2:$G$4&"'!A:A"),A95,INDIRECT("'"&$G$2:$G$4&"'!B:B"))) -> 0 | C95: =SUMPRODUCT(SUMIF(INDIRECT("'"&$G$2:$G$4&"'!A:A"),A95,INDIRECT("'"&$G$2:$G$4&"'!D:D"))) -> 11.94
A96: Cerveja Amstel 473ml | B96: =SUMPRODUCT(SUMIF(INDIRECT("'"&$G$2:$G$4&"'!A:A"),A96,INDIRECT("'"&$G$2:$G$4&"'!B:B"))) -> 552 | C96: =SUMPRODUCT(SUMIF(INDIRECT("'"&$G$2:$G$4&"'!A:A"),A96,INDIRECT("'"&$G$2:$G$4&"'!D:D"))) -> 21.625
A97: Cerveja Amstel 473ml | B97: =SUMPRODUCT(SUMIF(INDIRECT("'"&$G$2:$G$4&"'!A:A"),A97,INDIRECT("'"&$G$2:$G$4&"'!B:B"))) -> 552 | C97: =SUMPRODUCT(SUMIF(INDIRECT("'"&$G$2:$G$4&"'!A:A"),A97,INDIRECT("'"&$G$2:$G$4&"'!D:D"))) -> 21.625
A98: Cerveja Heineken 350ml | B98: =SUMPRODUCT(SUMIF(INDIRECT("'"&$G$2:$G$4&"'!A:A"),A98,INDIRECT("'"&$G$2:$G$4&"'!B:B"))) -> 0 | C98: =SUMPRODUCT(SUMIF(INDIRECT("'"&$G$2:$G$4&"'!A:A"),A98,INDIRECT("'"&$G$2:$G$4&"'!D:D"))) -> 12.4725
A99: Cerveja Heineken 473ml | B99: =SUMPRODUCT(SUMIF(INDIRECT("'"&$G$2:$G$4&"'!A:A"),A99,INDIRECT("'"&$G$2:$G$4&"'!B:B"))) -> 288 | C99: =SUMPRODUCT(SUMIF(INDIRECT("'"&$G$2:$G$4&"'!A:A"),A99,INDIRECT("'"&$G$2:$G$4&"'!D:D"))) -> 14.25
A100: Cachaça 500ml | B100: =SUMPRODUCT(SUMIF(INDIRECT("'"&$G$2:$G$4&"'!A:A"),A100,INDIRECT("'"&$G$2:$G$4&"'!B:B"))) -> 0 | C100: =SUMPRODUCT(SUMIF(INDIRECT("'"&$G$2:$G$4&"'!A:A"),A100,INDIRECT("'"&$G$2:$G$4&"'!D:D"))) -> 12
A101: Cachaça 300ml | B101: =SUMPRODUCT(SUMIF(INDIRECT("'"&$G$2:$G$4&"'!A:A"),A101,INDIRECT("'"&$G$2:$G$4&"'!B:B"))) -> 0 | C101: =SUMPRODUCT(SUMIF(INDIRECT("'"&$G$2:$G$4&"'!A:A"),A101,INDIRECT("'"&$G$2:$G$4&"'!D:D"))) -> 7.2
A102: Cachaça 200ml | B102: =SUMPRODUCT(SUMIF(INDIRECT("'"&$G$2:$G$4&"'!A:A"),A102,INDIRECT("'"&$G$2:$G$4&"'!B:B"))) -> 0 | C102: =SUMPRODUCT(SUMIF(INDIRECT("'"&$G$2:$G$4&"'!A:A"),A102,INDIRECT("'"&$G$2:$G$4&"'!D:D"))) -> 4.5

Sheet 02-10-24
A1: Produto | B1: Quantidade Vendida Quente | C1: Quantidade Vendida Gelada | D1: Preço Custo
A2: AMBEV
A3: Coluna1 | B3: Coluna2 | C3: Coluna3 | D3: Coluna4 | E3: Coluna5 | F3: Coluna6 | G3: Coluna7 | H3: Coluna8 | I3: Coluna9 | J3: Coluna10 | K3: Coluna11
A4: Cerveja Skol 1 litro | D4: =83/12 -> 6.916666667
A5: Cerveja Brahma 1 litro | C5: 6 | D5: =78.5/12 -> 6.541666667
A6: Cerveja Brahma 1 litro | D6: =78.5/12 -> 6.541666667
A7: Cerveja Brahma 300ml | D7: =49.48/23 -> 2.151304348
A8: Cerveja Antartica 1 litro | B8: 24 | C8: 19 | D8: =83/12 -> 6.916666667
A9: Cerveja Antartica 1 litro | D9: =83/12 -> 6.916666667
A10: Cerveja Budweiser 1 litro | D10: =78.5/12 -> 6.541666667
A11: Cerveja Budweiser 1 litro | D11: =78.5/12 -> 6.541666667
A12: Cerveja Budweiser Long Neck | D12: 4
A13: Cerveja Antartica 300ml | D13: =53.48/23 -> 2.325217391
A14: Cerveja original 300ml | D14: =59/23 -> 2.565217391
A15: Cerveja Stella 600ml | D15: =181.2/24 -> 7.55
A16: Cerveja original 1 Litro | D16: =89.9/12 -> 7.491666667
A17: Cerveja original 473 ml | D17: =4.41 -> 4.41
A18: Vodka Orloff 1 litro | D18: 28.4
A19: Vodka Smirnoff 998ml | D19: 33.73
A20: Cerveja Sparten Lata 473ml | D20: =49.9/12 -> 4.158333333
A21: Cerveja corona LongNeck | D21: =127/24 -> 5.291666667
A22: Cachaça Seleta 1 litro | D22: 29.9
A23: Wisky Red Label | D23: 74.9
A24: Wisky Cavalo Branco | D24: 62.9
A25: Refrigerante Pepsi 2 litros | C25: 1 | D25: =36.24/6 -> 6.04
A26: Refrigerante Pepsi 200ml | D26: =15/12 -> 1.25
A27: Refrigerante Antarctica 2 litros | C27: 2 | D27: =39.78/6 -> 6.63
A28: Refrigerante Antarctica 200ml | D28: =15/12 -> 1.25
A29: Refrigerante Antarctica 350ml | D29: =11.6/12 -> 0.9666666667
A30: Refrigerante Sukita 2 litros | D30: =28.75/6 -> 4.791666667
A31: Refrigerante Sukita Laranja 200ml | D31: =16.68/12 -> 1.39
A32: Energetico Red Bull 250ml | D32: 7.29
A33: H2OH 1,5 litro limoneto | D33: =39.6/6 -> 6.6
A34: Bala Halls | D34: 1.1971
A35: Skol Beats | D35: =38.4/8 -> 4.8
A36: Biscoito Piraque | D36: 2.5
C37: Venda Custo
A38: HEINEKEN
A39: Cerveja Heineken 600ml | D39: 8.29
A40: Agua Mamba Water 350ml | D40: 2.17
A41: Cerveja Lagunitas 350ml | D41: 4
A42: Cerveja Amstel 1 litro | C42: 13 | D42: =74.95/12 -> 6.245833333
A43: Cerveja BADEN 350ml | D43: 4.34
C44: Venda Custo
A45: ITAUP
A46: Refrigerante ItaUp sabores | D46: =18.9/6 -> 3.15
A47: Energetico Fontt 2 litros | D47: 3
C48: Venda Custo
A49: COCA COLA
A50: Refrigerante Coca Cola 2 litros | B50: =7*6 -> 42 | D50: =46/6 -> 7.666666667
A51: Refrigerante Coca Cola 2 litros Retornavel | C51: 1 | D51: 5.7
A52: Refrigerante Fanta Laranja 2 litros | D52: =35.5/6 -> 5.916666667
A53: Refrigerante Coca Cola 2 litros Sem Açucar | D53: =63.2/8 -> 7.9
A54: Refrigerante Coca Cola mini 200ml | D54: =17.4/12 -> 1.45
A55: Refrigerante Fanta Laranja 600ml | D55: 3.62
A56: Refrigerante Coca Cola lata 350ml | D56: =33/12 -> 2.75
A57: Refrigerante Coca Cola 600ml | D57: 4.5
A58: Refrigerante Coca Cola lata 350ml sem açucar | D58: 2.61
A59: Suco DelVale 1,5 | D59: 7.03
A60: Suco Kappo | D60: 1.25
C61: Venda Custo
A62: NESTLE
A63: CHOKITO | D63: 1.66
A64: PASSATEMPO | D64: 2.29
A65: BONO | D65: 2.17
A66: PRESTIGIO | D66: 1.54
C67: Venda Custo
A68: CARVÃO ROYTEC
A69: Carvão Roytec 2,5kg | D69: 8.5
C70: Venda Custo
A71: AGUA
A72: AGUA 20 LITROS | D72: 6
A73: AGUA COM GÁS 510ML | D73: =14/12 -> 1.166666667
A74: AGUA SEM GÁS 510ML | D74: =10/12 -> 0.8333333333
C75: Venda Custo
A76: BE LONG
A77: Energetico one 2 litros | D77: =26.1/6 -> 4.35
A78: Vodka Darkoff 900ml | D78: 5.5
A79: Vodka Darkoff 1,50 litros | D79: =90/12 -> 7.5
A80: Combo Jaya 1,50 litros | C80: 3 | D80: =D79+D85 -> 14
A81: Combo One 1,50 litros | C81: 1 | D81: =D79+D77 -> 11.85
A82: Combo Jaya 900ml | D82: =5.3+6.8 -> 12.1
A83: Combo One 900ml | D83: =4.7+5.3 -> 10
A84: Vinho Bodegão Bordo 1 Litro | D84: =98.94/12 -> 8.245
A85: Energetico Jaya 2 litros | D85: 6.5
A86: Ice One 300ml | D86: 1.89
A87: Coquetel Banana Belong 960ml | D87: =93/6 -> 15.5
A88: Chopp Bodegão 600ml | D88: =59.4/12 -> 4.95
A89: Vinho Bodegão 2 Litros | D89: 16.5
A90: Menta 900ml | D90: 5.9
C91: Venda Custo
A92: ARBOL
A93: Ousadia 500ml | D93: =38.92/12 -> 3.243333333
A94: Chopp Vinho Pink Moon 600ml | D94: 7.4
A95: Vodka Komaroff 1L | D95: 6
A96: Ice syn 300ml | D96: =43.23/24 -> 1.80125
A97: GostoGin lata 269ml | D97: =81.58/24 -> 3.399166667
A98: Vinho Cantina da serra | D98: =53.72/12 -> 4.476666667
C99: Venda Custo
B101: Soma de Itens | C101: =SUM(B4:C98) -> 112
C102: Venda Custo
A103: INAH
A104: Produto | B104: Quantidade Vendida Quente | C104: Quantidade Vendida Gelada | D104: Preço Custo
A105: AMBEV
A106: Coluna1 | B106: Coluna2 | C106: Coluna3 | D106: Coluna4 | E106: Coluna5 | F106: Coluna6 | G106: Coluna7 | H106: Coluna8 | I106: Coluna9 | J106: Coluna10 | K106: Coluna11
A107: Cerveja Skol Lata 473ml | D107: =41.9/12 -> 3.491666667
A108: Cerveja Skol Beats Lata 269ml | D108: 5.14
A109: Cerveja Brahma 473ml | D109: =39/12 -> 3.25
A110: Cerveja Brahma 473ml | D110: =41.9/12 -> 3.491666667
A111: Cerveja Antartica lata 473ml | B111: =142*12 -> 1704 | C111: 5 | D111: =41/12 -> 3.416666667
A112: Cerveja Antartica lata 473ml | D112: =43.9/12 -> 3.658333333
A113: Cerveja Stella lata 473 ml | D113: =46.9/12 -> 3.908333333
A114: Cerveja Budweiser Latão | D114: =46.24/12 -> 3.853333333
A115: Cerveja Budweiser LongNeck | D115: =95.8/24 -> 3.991666667
A116: Brahma Duplo Malte | D116: 3.425
C118: Venda Custo
A119: ITAIPAVA
A120: Cerveja Itaipava Latão | D120: =30.15/12 -> 2.5125
A121: Cerveja Lokal latão | D121: =27.4/12 -> 2.283333333
C122: Venda Custo
A123: IMPERIO
A124: Creveja Imperio Latão Puro Malte | D124: =37/12 -> 3.083333333
A125: Creveja Imperio Latão Puro Malte | D125: =37/12 -> 3.083333333
A126: Creveja Imperio Latão Large | D126: 3.98
C127: Venda Custo
A128: HEINEKEN
A129: Cerveja Amstel 473ml | B129: 12 | C129: 6 | D129: =41.5/12 -> 3.458333333
A130: Cerveja Amstel 473ml | D130: =45/12 -> 3.75
A131: Cerveja Heineken 350ml | D131: =49.89/12 -> 4.1575
A132: Cerveja Heineken 473ml | B132: =13*12 -> 156 | C132: 13 | D132: =57/12 -> 4.75
C133: Venda Custo
A134: CACHAÇA
A135: Cachaça 500ml | D135: 4
A136: Cachaça 300ml | D136: 2.4
A137: Cachaça 200ml | C137: 1 | D137: 1.5
C139: Venda Custo
B142: Soma de Itens | C142: =SUM(B107:C138) -> 1897
C143: Venda Custo
A145: TOTAL DAS VENDAS CUSTO | B145: =E143+E102 -> 0 | C145: TOTAL DAS VENDAS GERAL

Sheet 03-10-24
A1: Produto | B1: Quantidade Vendida Quente | C1: Quantidade Vendida Gelada | D1: Preço Custo
A2: AMBEV
A3: Coluna1 | B3: Coluna2 | C3: Coluna3 | D3: Coluna4 | E3: Coluna5 | F3: Coluna6 | G3: Coluna7 | H3: Coluna8 | I3: Coluna9 | J3: Coluna10 | K3: Coluna11
A4: Cerveja Skol 1 litro | C4: 2 | D4: =83/12 -> 6.916666667
A5: Cerveja Brahma 1 litro | D5: =78.5/12 -> 6.541666667
A6: Cerveja Brahma 1 litro | D6: =78.5/12 -> 6.541666667
A7: Cerveja Brahma 300ml | D7: =49.48/23 -> 2.151304348
A8: Cerveja Antartica 1 litro | B8: =6*12 -> 72 | C8: 15 | D8: =83/12 -> 6.916666667
A9: Cerveja Antartica 1 litro | D9: =83/12 -> 6.916666667
A10: Cerveja Budweiser 1 litro | D10: =78.5/12 -> 6.541666667
A11: Cerveja Budweiser 1 litro | D11: =78.5/12 -> 6.541666667
A12: Cerveja Budweiser Long Neck | D12: 4
A13: Cerveja Antartica 300ml | D13: =53.48/23 -> 2.325217391
A14: Cerveja original 300ml | D14: =59/23 -> 2.565217391
A15: Cerveja Stella 600ml | D15: =181.2/24 -> 7.55
A16: Cerveja original 1 Litro | D16: =89.9/12 -> 7.491666667
A17: Cerveja original 473 ml | D17: =4.41 -> 4.41
A18: Vodka Orloff 1 litro | D18: 28.4
A19: Vodka Smirnoff 998ml | D19: 33.73
A20: Cerveja Sparten Lata 473ml | D20: =49.9/12 -> 4.158333333
A21: Cerveja corona LongNeck | D21: =127/24 -> 5.291666667
A22: Cachaça Seleta 1 litro | D22: 29.9
A23: Wisky Red Label | D23: 74.9
A24: Wisky Cavalo Branco | D24: 62.9
A25: Refrigerante Pepsi 2 litros | C25: 1 | D25: 6
A26: Refrigerante Pepsi 200ml | D26: =15/12 -> 1.25
A27: Refrigerante Antarctica 2 litros | B27: 6 | D27: =39.78/6 -> 6.63
A28: Refrigerante Antarctica 200ml | D28: =15/12 -> 1.25
A29: Refrigerante Antarctica 350ml | D29: =11.6/12 -> 0.9666666667
A30: Refrigerante Sukita 2 litros | D30: =28.75/6 -> 4.791666667
A31: Refrigerante Sukita Laranja 200ml | D31: =16.68/12 -> 1.39
A32: Energetico Red Bull 250ml | D32: 7.29
A33: H2OH 1,5 litro limoneto | D33: =39.6/6 -> 6.6
A34: Bala Halls | D34: 1.1971
A35: Skol Beats | D35: =38.4/8 -> 4.8
A36: Biscoito Piraque | D36: 2.5
C37: Venda Custo
A38: HEINEKEN
A39: Cerveja Heineken 600ml | D39: 8.29
A40: Agua Mamba Water 350ml | D40: 2.17
A41: Cerveja Lagunitas 350ml | D41: 4
A42: Cerveja Amstel 1 litro | C42: 4 | D42: =74.95/12 -> 6.245833333
A43: Cerveja BADEN 350ml | D43: 4.34
C44: Venda Custo
A45: ITAUP
A46: Refrigerante ItaUp sabores | D46: =18.9/6 -> 3.15
A47: Energetico Fontt 2 litros | D47: 3
C48: Venda Custo
A49: COCA COLA
A50: Refrigerante Coca Cola 2 litros | B50: =6*6 -> 36 | C50: 2 | D50: =46/6 -> 7.666666667
A51: Refrigerante Coca Cola 2 litros Retornavel | C51: 4 | D51: 5.7
A52: Refrigerante Fanta Laranja 2 litros | D52: =35.5/6 -> 5.916666667
A53: Refrigerante Coca Cola 2 litros Sem Açucar | D53: =63.2/8 -> 7.9
A54: Refrigerante Coca Cola mini 200ml | D54: =17.4/12 -> 1.45
A55: Refrigerante Fanta Laranja 600ml | D55: 3.62
A56: Refrigerante Coca Cola lata 350ml | D56: =33/12 -> 2.75
A57: Refrigerante Coca Cola 600ml | D57: 4.5
A58: Refrigerante Coca Cola lata 350ml sem açucar | D58: 2.61
A59: Suco DelVale 1,5 | D59: 7.03
A60: Suco Kappo | D60: 1.25
C61: Venda Custo
A62: NESTLE
A63: CHOKITO | D63: 1.66
A64: PASSATEMPO | D64: 2.29
A65: BONO | D65: 2.17
A66: PRESTIGIO | D66: 1.54
C67: Venda Custo
A68: CARVÃO ROYTEC
A69: Carvão Roytec 2,5kg | D69: 8.5
C70: Venda Custo
A71: AGUA
A72: AGUA 20 LITROS | D72: 6
A73: AGUA COM GÁS 510ML | D73: =14/12 -> 1.166666667
A74: AGUA SEM GÁS 510ML | D74: =10/12 -> 0.8333333333
C75: Venda Custo
A76: BE LONG
A77: Energetico one 2 litros | D77: =26.1/6 -> 4.35
A78: Vodka Darkoff 900ml | D78: 5.5
A79: Vodka Darkoff 1,50 litros | D79: =90/12 -> 7.5
A80: Combo Jaya 1,50 litros | D80: =D79+D85 -> 14
A81: Combo One 1,50 litros | D81: =D79+D77 -> 11.85
A82: Combo Jaya 900ml | D82: =5.3+6.8 -> 12.1
A83: Combo One 900ml | D83: =4.7+5.3 -> 10
A84: Vinho Bodegão Bordo 1 Litro | D84: =98.94/12 -> 8.245
A85: Energetico Jaya 2 litros | D85: 6.5
A86: Ice One 300ml | D86: 1.89
A87: Coquetel Banana Belong 960ml | D87: =93/6 -> 15.5
A88: Chopp Bodegão 600ml | D88: =59.4/12 -> 4.95
A89: Vinho Bodegão 2 Litros | D89: 16.5
A90: Menta 900ml | D90: 5.9
C91: Venda Custo
A92: ARBOL
A93: Ousadia 500ml | D93: =38.92/12 -> 3.243333333
A94: Chopp Vinho Pink Moon 600ml | D94: 7.4
A95: Vodka Komaroff 1L | D95: 6
A96: Ice syn 300ml | D96: =43.23/24 -> 1.80125
A97: GostoGin lata 269ml | D97: =81.58/24 -> 3.399166667
A98: Vinho Cantina da serra | D98: =53.72/12 -> 4.476666667
C99: Venda Custo
B101: Soma de Itens | C101: =SUM(B4:C98) -> 142
C102: Venda Custo
A103: INAH
A104: Produto | B104: Quantidade Vendida Quente | C104: Quantidade Vendida Gelada | D104: Preço Custo
A105: AMBEV
A106: Coluna1 | B106: Coluna2 | C106: Coluna3 | D106: Coluna4 | E106: Coluna5 | F106: Coluna6 | G106: Coluna7 | H106: Coluna8 | I106: Coluna9 | J106: Coluna10 | K106: Coluna11
A107: Cerveja Skol Lata 473ml | D107: =41.9/12 -> 3.491666667
A108: Cerveja Skol Beats Lata 269ml | D108: 5.14
A109: Cerveja Brahma 473ml | D109: =39/12 -> 3.25
A110: Cerveja Brahma 473ml | B110: =30*12 -> 360 | D110: =40/12 -> 3.333333333
A111: Cerveja Antartica lata 473ml | B111: =109*12 -> 1308 | D111: =41/12 -> 3.416666667
A112: Cerveja Antartica lata 473ml | D112: =43.9/12 -> 3.658333333
A113: Cerveja Stella lata 473 ml | D113: =46.9/12 -> 3.908333333
A114: Cerveja Budweiser Latão | D114: =46.24/12 -> 3.853333333
A115: Cerveja Budweiser LongNeck | D115: =95.8/24 -> 3.991666667
A116: Brahma Duplo Malte | D116: 3.425
C118: Venda Custo
A119: ITAIPAVA
A120: Cerveja Itaipava Latão | D120: =30.15/12 -> 2.5125
A121: Cerveja Lokal latão | D121: =27.4/12 -> 2.283333333
C122: Venda Custo
A123: IMPERIO
A124: Creveja Imperio Latão Puro Malte | C124: 8 | D124: =37/12 -> 3.083333333
A125: Creveja Imperio Latão Puro Malte | C125: 1 | D125: =37/12 -> 3.083333333
A126: Creveja Imperio Latão Large | D126: 3.98
C127: Venda Custo
A128: HEINEKEN
A129: Cerveja Amstel 473ml | B129: =43*12 -> 516 | C129: 2 | D129: =41.5/12 -> 3.458333333
A130: Cerveja Amstel 473ml | D130: =45/12 -> 3.75
A131: Cerveja Heineken 350ml | D131: =49.89/12 -> 4.1575
A132: Cerveja Heineken 473ml | B132: 48 | C132: 1 | D132: =57/12 -> 4.75
C133: Venda Custo
A134: CACHAÇA
A135: Cachaça 500ml | D135: 4
A136: Cachaça 300ml | D136: 2.4
A137: Cachaça 200ml | C137: 1 | D137: 1.5
C139: Venda Custo
B142: Soma de Itens | C142: =SUM(B107:C138) -> 2245
C143: Venda Custo
A145: TOTAL DAS VENDAS CUSTO | B145: =E143+E102 -> 0 | C145: TOTAL DAS VENDAS GERAL

Sheet 04-10-24
A1: Produto | B1: Quantidade Vendida Quente | C1: Quantidade Vendida Gelada | D1: Preço Custo
A2: AMBEV
A3: Coluna1 | B3: Coluna2 | C3: Coluna3 | D3: Coluna4 | E3: Coluna5 | F3: Coluna6 | G3: Coluna7 | H3: Coluna8 | I3: Coluna9 | J3: Coluna10 | K3: Coluna11
A4: Cerveja Skol 1 litro | B4: 12 | C4: 2 | D4: =83/12 -> 6.916666667
A5: Cerveja Brahma 1 litro | B5: 12 | C5: 1 | D5: =78.5/12 -> 6.541666667
A6: Cerveja Brahma 1 litro | D6: =78.5/12 -> 6.541666667
A7: Cerveja Brahma 300ml | D7: =49.48/23 -> 2.151304348
A8: Cerveja Antartica 1 litro | B8: =17*12 -> 204 | C8: 78 | D8: =83/12 -> 6.916666667
A9: Cerveja Antartica 1 litro | D9: =83/12 -> 6.916666667
A10: Cerveja Budweiser 1 litro | D10: =78.5/12 -> 6.541666667
A11: Cerveja Budweiser 1 litro | D11: =78.5/12 -> 6.541666667
A12: Cerveja Budweiser Long Neck | D12: 4
A13: Cerveja Antartica 300ml | D13: =53.48/23 -> 2.325217391
A14: Cerveja original 300ml | D14: =59/23 -> 2.565217391
A15: Cerveja Stella 600ml | D15: =181.2/24 -> 7.55
A16: Cerveja original 1 Litro | D16: =89.9/12 -> 7.491666667
A17: Cerveja original 473 ml | D17: =4.41 -> 4.41
A18: Vodka Orloff 1 litro | D18: 28.4
A19: Vodka Smirnoff 998ml | D19: 33.73
A20: Cerveja Sparten Lata 473ml | D20: =49.9/12 -> 4.158333333
A21: Cerveja corona LongNeck | D21: =127/24 -> 5.291666667
A22: Cachaça Seleta 1 litro | D22: 29.9
A23: Wisky Red Label | D23: 74.9
A24: Wisky Cavalo Branco | D24: 62.9
A25: Refrigerante Pepsi 2 litros | D25: 6
A26: Refrigerante Pepsi 200ml | D26: =15/12 -> 1.25
A27: Refrigerante Antarctica 2 litros | C27: 1 | D27: =39.78/6 -> 6.63
A28: Refrigerante Antarctica 200ml | D28: =15/12 -> 1.25
A29: Refrigerante Antarctica 350ml | D29: =11.6/12 -> 0.9666666667
A30: Refrigerante Sukita 2 litros | C30: 2 | D30: =28.75/6 -> 4.791666667
A31: Refrigerante Sukita Laranja 200ml | D31: =16.68/12 -> 1.39
A32: Energetico Red Bull 250ml | D32: 7.29
A33: H2OH 1,5 litro limoneto | D33: =39.6/6 -> 6.6
A34: Bala Halls | D34: 1.1971
A35: Skol Beats | D35: =38.4/8 -> 4.8
A36: Biscoito Piraque | D36: 2.5
C37: Venda Custo
A38: HEINEKEN
A39: Cerveja Heineken 600ml | D39: 8.29
A40: Agua Mamba Water 350ml | D40: 2.17
A41: Cerveja Lagunitas 350ml | D41: 4
A42: Cerveja Amstel 1 litro | B42: 12 | C42: 12 | D42: =74.95/12 -> 6.245833333
A43: Cerveja BADEN 350ml | D43: 4.34
C44: Venda Custo
A45: ITAUP
A46: Refrigerante ItaUp sabores | D46: =18.9/6 -> 3.15
A47: Energetico Fontt 2 litros | D47: 3
C48: Venda Custo
A49: COCA COLA
A50: Refrigerante Coca Cola 2 litros | B50: =5*6 -> 30 | C50: 1 | D50: =46/6 -> 7.666666667
A51: Refrigerante Coca Cola 2 litros Retornavel | D51: 5.7
A52: Refrigerante Fanta Laranja 2 litros | D52: =35.5/6 -> 5.916666667
A53: Refrigerante Coca Cola 2 litros Sem Açucar | D53: =63.2/8 -> 7.9
A54: Refrigerante Coca Cola mini 200ml | D54: =17.4/12 -> 1.45
A55: Refrigerante Fanta Laranja 600ml | D55: 3.62
A56: Refrigerante Coca Cola lata 350ml | D56: =33/12 -> 2.75
A57: Refrigerante Coca Cola 600ml | D57: 4.5
A58: Refrigerante Coca Cola lata 350ml sem açucar | D58: 2.61
A59: Suco DelVale 1,5 | D59: 7.03
A60: Suco Kappo | D60: 1.25
C61: Venda Custo
A62: NESTLE
A63: CHOKITO | D63: 1.66
A64: PASSATEMPO | D64: 2.29
A65: BONO | D65: 2.17
A66: PRESTIGIO | D66: 1.54
C67: Venda Custo
A68: CARVÃO ROYTEC
A69: Carvão Roytec 2,5kg | D69: 8.5
C70: Venda Custo
A71: AGUA
A72: AGUA 20 LITROS | C72: 1 | D72: 6
A73: AGUA COM GÁS 510ML | C73: 1 | D73: =14/12 -> 1.166666667
A74: AGUA SEM GÁS 510ML | D74: =10/12 -> 0.8333333333
C75: Venda Custo
A76: BE LONG
A77: Energetico one 2 litros | B77: 12 | C77: 1 | D77: =26.1/6 -> 4.35
A78: Vodka Darkoff 900ml | B78: 12 | D78: 5.5
A79: Vodka Darkoff 1,50 litros | D79: =90/12 -> 7.5
A80: Combo Jaya 1,50 litros | D80: =D79+D85 -> 14
A81: Combo One 1,50 litros | D81: =D79+D77 -> 11.85
A82: Combo Jaya 900ml | D82: =5.3+6.8 -> 12.1
A83: Combo One 900ml | D83: =4.7+5.3 -> 10
A84: Vinho Bodegão Bordo 1 Litro | D84: =98.94/12 -> 8.245
A85: Energetico Jaya 2 litros | C85: 1 | D85: 6.5
A86: Ice One 300ml | D86: 1.89
A87: Coquetel Banana Belong 960ml | D87: =93/6 -> 15.5
A88: Chopp Bodegão 600ml | D88: =59.4/12 -> 4.95
A89: Vinho Bodegão 2 Litros | C89: 2 | D89: 16.5
A90: Menta 900ml | D90: 5.9
C91: Venda Custo
A92: ARBOL
A93: Ousadia 500ml | D93: =38.92/12 -> 3.243333333
A94: Chopp Vinho Pink Moon 600ml | D94: 7.4
A95: Vodka Komaroff 1L | D95: 6
A96: Ice syn 300ml | D96: =43.23/24 -> 1.80125
A97: GostoGin lata 269ml | D97: =81.58/24 -> 3.399166667
A98: Vinho Cantina da serra | D98: =53.72/12 -> 4.476666667
C99: Venda Custo
B101: Soma de Itens | C101: =SUM(B4:C98) -> 397
C102: Venda Custo
A103: INAH
A104: Produto | B104: Quantidade Vendida Quente | C104: Quantidade Vendida Gelada | D104: Preço Custo
A105: AMBEV
A106: Coluna1 | B106: Coluna2 | C106: Coluna3 | D106: Coluna4 | E106: Coluna5 | F106: Coluna6 | G106: Coluna7 | H106: Coluna8 | I106: Coluna9 | J106: Coluna10 | K106: Coluna11
A107: Cerveja Skol Lata 473ml | D107: =41.9/12 -> 3.491666667
A108: Cerveja Skol Beats Lata 269ml | D108: 5.14
A109: Cerveja Brahma 473ml | D109: =40/12 -> 3.333333333
A110: Cerveja Brahma 473ml | D110: =41.9/12 -> 3.491666667
A111: Cerveja Antartica lata 473ml | B111: 24 | C111: =4+24 -> 28 | D111: =41/12 -> 3.416666667
A112: Cerveja Antartica lata 473ml | D112: =43.9/12 -> 3.658333333
A113: Cerveja Stella lata 473 ml | D113: =46.9/12 -> 3.908333333
A114: Cerveja Budweiser Latão | D114: =46.24/12 -> 3.853333333
A115: Cerveja Budweiser LongNeck | D115: =95.8/24 -> 3.991666667
A116: Brahma Duplo Malte | D116: 3.425
C118: Venda Custo
A119: ITAIPAVA
A120: Cerveja Itaipava Latão | D120: =30.15/12 -> 2.5125
A121: Cerveja Lokal latão | D121: =27.4/12 -> 2.283333333
C122: Venda Custo
A123: IMPERIO
A124: Creveja Imperio Latão Puro Malte | C124: 1 | D124: =37/12 -> 3.083333333
A125: Creveja Imperio Latão Puro Malte | C125: 12 | D125: =37/12 -> 3.083333333
A126: Creveja Imperio Latão Large | D126: 3.98
C127: Venda Custo
A128: HEINEKEN
A129: Cerveja Amstel 473ml | B129: 24 | C129: =2+24 -> 26 | D129: =41.5/12 -> 3.458333333
A130: Cerveja Amstel 473ml | D130: =45/12 -> 3.75
A131: Cerveja Heineken 350ml | D131: =49.89/12 -> 4.1575
A132: Cerveja Heineken 473ml | B132: =7*12 -> 84 | C132: =24 -> 24 | D132: =57/12 -> 4.75
C133: Venda Custo
A134: CACHAÇA
A135: Cachaça 500ml | D135: 4
A136: Cachaça 300ml | D136: 2.4
A137: Cachaça 200ml | D137: 1.5
C139: Venda Custo
B142: Soma de Itens | C142: =SUM(B107:C138) -> 223
C143: Venda Custo
A145: TOTAL DAS VENDAS CUSTO | B145: =E143+E102 -> 0 | C145: TOTAL DAS VENDAS GERAL
